fUST/lending_fUST_20260115
["ID","MTS","AMOUNT","RATE_DAILY","PERIOD"]
[401937436,1768412871514,-500.0,0.00011087,2]
[401937437,1768412871525,-572.78301064,0.00011087,2]
[401937438,1768412871537,-500.0,0.00011087,2]
[401937439,1768412871547,-500.0,0.00011087,2]
[401937440,1768412871562,-500.0,0.00011087,2]
[401937441,1768412871573,-500.0,0.00011087,2]
[401937442,1768412871584,-226.08090519,0.00011087,2]
[401937443,1768412871595,-500.0,0.00011087,2]
[401937444,1768412871607,-500.0,0.00011087,2]
[401937445,1768412871619,-500.0,0.00011087,2]
[401937446,1768412871630,-500.0,0.00011087,2]
[401937447,1768412871641,-500.0,0.00011087,2]
[401937448,1768412871652,-500.0,0.00011087,2]
[401937449,1768412871667,-500.0,0.00011087,2]
[401937450,1768412871682,-500.0,0.00011087,2]
[401937451,1768412871693,-500.0,0.00011087,2]
[401937452,1768412871704,-500.0,0.00011087,2]
[401937453,1768412871715,-500.0,0.00011087,2]
[401937454,1768412871727,-500.0,0.00011087,2]
[401937456,1768412871739,-500.0,0.00011087,2]
[401937457,1768412871750,-500.0,0.00011087,2]
[401937458,1768412871765,-500.0,0.00011087,2]
[401937459,1768412871776,-500.0,0.00011087,2]
[401937460,1768412871787,-271.20930874,0.00011087,2]
[401937461,1768412871798,-500.0,0.00011087,2]
[401937462,1768412871809,-500.0,0.00011087,2]
[401937463,1768412871824,-500.0,0.00011087,2]
[401937464,1768412871835,-500.0,0.00011087,2]
[401937465,1768412871996,-500.0,0.00011087,2]
[401937466,1768412872008,-343.09999169,0.00011087,2]
[401937467,1768412872085,-500.0,0.00011087,2]
[401937468,1768412872121,-500.0,0.00011087,2]
[401937469,1768412872133,-500.0,0.00011087,2]
[401937470,1768412872148,-500.0,0.00011087,2]
[401937471,1768412872160,-500.0,0.00011087,2]
[401937472,1768412872172,-500.0,0.00011087,2]
[401937473,1768412872185,-500.0,0.00011087,2]
[401937474,1768412872200,-500.0,0.00011087,2]
[401937475,1768412872212,-500.0,0.00011087,2]
[401937476,1768412872223,-500.0,0.00011087,2]
[401937477,1768412872237,-500.0,0.00011087,2]
[401937478,1768412872249,-500.0,0.00011087,2]
[401937479,1768412872261,-500.0,0.00011087,2]
[401937480,1768412872274,-500.0,0.00011087,2]
[401937481,1768412872285,-459.24213646,0.00011087,2]
[401937482,1768412872331,-500.0,0.00011087,2]
[401937483,1768412872409,-500.0,0.00011087,2]
[401937484,1768412872425,-500.0,0.00011087,2]
[401937485,1768412872439,-47.00859646,0.00011087,2]
[401937538,1768413032276,-843.43653506,0.00010429,2]
[401937545,1768413032328,-33.6627987,0.00010429,2]
[401937547,1768413032338,-1218.08806996,0.00010429,2]
[401937549,1768413032347,-566.0,0.00010429,2]
[401937551,1768413032356,-293.76964521,0.00010872,2]
[401937552,1768413032366,-46205.9352476,0.00011087,2]
[401937554,1768413032375,-19645.33744225,0.00011314,2]
[401937557,1768413032389,-514.69717787,0.00011314,2]
[401937559,1768413032401,-303.96875515,0.00011314,2]
[401937561,1768413032413,-424.98544263,0.00011314,2]
[401937563,1768413032427,-1249.50691396,0.00011314,2]
[401937565,1768413032446,-962.90483742,0.00011314,2]
[401937598,1768413038782,-1273.6685903,0.00011314,2]
[401937600,1768413038795,-25624.93084042,0.00011314,2]
[401937602,1768413038807,-300.0,0.00011314,2]
[401937604,1768413038820,-300.0,0.00011314,2]
[401937606,1768413038832,-300.0,0.00011314,2]
[401937608,1768413038845,-300.0,0.00011314,2]
[401937611,1768413038857,-300.0,0.00011314,2]
[401937613,1768413038869,-300.0,0.00011314,2]
[401937615,1768413038881,-300.0,0.00011314,2]
[401937617,1768413038892,-300.0,0.00011314,2]
[401937619,1768413038904,-300.0,0.00011314,2]
[401937621,1768413038918,-300.0,0.00011314,2]
[401937623,1768413038930,-300.0,0.00011314,2]
[401937625,1768413038940,-300.0,0.00011314,2]
[401937627,1768413038953,-300.0,0.00011314,2]
[401937630,1768413038966,-300.0,0.00011314,2]
[401937632,1768413038978,-300.0,0.00011314,2]
[401937634,1768413038992,-600.0,0.00011314,2]
[401937636,1768413039003,-3508.39733505,0.00011992,2]
[401937638,1768413039015,-4872.35227984,0.00011992,2]
[401937641,1768413039026,-2806.74244627,0.00012069,2]
[401937642,1768413039036,-373.8417713,0.00012232,2]
[401937645,1768413039048,-10628.8488985,0.00012232,2]
[401937647,1768413039059,-500.0,0.00012329,2]
[401937649,1768413039069,-500.0,0.00012329,2]
[401937651,1768413039080,-500.0,0.00012329,2]
[401937653,1768413039091,-500.0,0.00012329,2]
[401937655,1768413039101,-500.0,0.00012329,2]
[401937657,1768413039113,-500.0,0.00012329,2]
[401937659,1768413039124,-500.0,0.00012329,2]
[401937661,1768413039136,-500.0,0.00012329,2]
[401937663,1768413039149,-500.0,0.00012329,2]
[401937665,1768413039159,-500.0,0.00012329,2]
[401937667,1768413039170,-500.0,0.00012329,2]
[401937669,1768413039183,-500.0,0.00012329,2]
[401937671,1768413039195,-500.0,0.00012329,2]
[401937674,1768413039206,-500.0,0.00012329,2]
[401937676,1768413039217,-500.0,0.00012329,2]
[401937677,1768413039228,-500.0,0.00012329,2]
[401937680,1768413039241,-500.0,0.00012329,2]
[401937682,1768413039252,-500.0,0.00012329,2]
[401937684,1768413039262,-500.0,0.00012329,2]
[401937686,1768413039273,-500.0,0.00012329,2]
[401937688,1768413039284,-500.0,0.00012329,2]
[401937690,1768413039294,-500.0,0.00012329,2]
[401937692,1768413039304,-500.0,0.00012329,2]
[401937694,1768413039314,-500.0,0.00012329,2]
[401937696,1768413039325,-500.0,0.00012329,2]
[401937698,1768413039335,-500.0,0.00012329,2]
[401937700,1768413039345,-500.0,0.00012329,2]
[401937702,1768413039355,-500.0,0.00012329,2]
[401937704,1768413039365,-500.0,0.00012329,2]
[401937706,1768413039376,-500.0,0.00012329,2]
[401937708,1768413039387,-500.0,0.00012329,2]
[401937710,1768413039397,-500.0,0.00012329,2]
[401937712,1768413039407,-500.0,0.00012329,2]
[401937714,1768413039418,-500.0,0.00012329,2]
[401937716,1768413039428,-500.0,0.00012329,2]
[401937718,1768413039437,-500.0,0.00012329,2]
[401937719,1768413039447,-500.0,0.00012329,2]
[401937722,1768413039459,-500.0,0.00012329,2]
[401937724,1768413039470,-500.0,0.00012329,2]
[401937726,1768413039480,-500.0,0.00012329,2]
[401937728,1768413039491,-500.0,0.00012329,2]
[401937730,1768413039502,-500.0,0.00012329,2]
[401937732,1768413039514,-500.0,0.00012329,2]
[401937734,1768413039526,-500.0,0.00012329,2]
[401937736,1768413039537,-500.0,0.00012329,2]
[401937738,1768413039549,-500.0,0.00012329,2]
[401937740,1768413039560,-500.0,0.00012329,2]
[401937742,1768413039572,-533.29118266,0.00012329,2]
[401937744,1768413039583,-500.0,0.00012329,2]
[401937746,1768413039594,-500.0,0.00012329,2]
[401937748,1768413039605,-500.0,0.00012329,2]
[401937750,1768413039615,-199.99999999,0.00012329,2]
[401937752,1768413039625,-500.0,0.00012329,2]
[401937754,1768413039636,-500.0,0.00012329,2]
[401937756,1768413039647,-500.0,0.00012329,2]
[401937758,1768413039658,-500.0,0.00012329,2]
[401937760,1768413039671,-500.0,0.00012329,2]
[401937762,1768413039682,-500.0,0.00012329,2]
[401937764,1768413039693,-500.0,0.00012329,2]
[401937767,1768413039704,-500.0,0.00012329,2]
[401937769,1768413039715,-500.0,0.00012329,2]
[401937771,1768413039727,-500.0,0.00012329,2]
[401937773,1768413039738,-500.0,0.00012329,2]
[401937775,1768413039750,-500.0,0.00012329,2]
[401937777,1768413039761,-720.0,0.00012445,2]
[401937779,1768413039771,-337.81163592,0.00012499,2]
[401937781,1768413039782,-3522.5668425,0.000125,2]
[401937783,1768413039792,-6359.50365584,0.00012774,2]
[401937785,1768413039803,-346.64818135,0.00012872,2]
[401937787,1768413039813,-246.05048425,0.00013,3]
[401937789,1768413039823,-250.0,0.00013006,2]
[401937791,1768413039833,-46205.9352476,0.00013075,2]
[401937793,1768413039843,-816.15267044,0.00013105,2]
[401937795,1768413039853,-241.96881838,0.00013273,2]
[401937797,1768413039864,-500.0,0.00013273,2]
[401937799,1768413039875,-500.0,0.00013273,2]
[401937802,1768413039887,-864.0,0.00013689,2]
[401937804,1768413039898,-500.0,0.00013698,2]
[401937806,1768413039912,-1000.0,0.00013699,2]
[401937808,1768413039922,-172.3937599,0.00013699,2]
[401937810,1768413039933,-14769.3119204,0.00013699,2]
[401937812,1768413039943,-646.70021057,0.00013699,2]
[401937815,1768413039953,-500.0,0.00013699,2]
[401937817,1768413039963,-500.0,0.00013699,2]
[401937819,1768413039974,-503.42728186,0.00013699,2]
[401937821,1768413039984,-500.0,0.00013699,2]
[401937823,1768413039996,-500.0,0.00013699,2]
[401937826,1768413040007,-500.0,0.00013699,2]
[401937829,1768413040017,-500.0,0.00013699,2]
[401937831,1768413040027,-207.1246657,0.00013699,2]
[401937833,1768413040037,-373.8417713,0.00013811,2]
[401937835,1768413040047,-1000.0,0.00013821,2]
[401937837,1768413040057,-1000.0,0.00013821,2]
[401937839,1768413040067,-193.25,0.00013825,2]
[401937841,1768413040078,-1000.0,0.00014247,2]
[401937843,1768413040089,-1000.0,0.00014247,2]
[401937845,1768413040099,-1000.0,0.00014247,2]
[401937847,1768413040109,-1000.0,0.00014247,2]
[401937850,1768413040119,-1000.0,0.00014247,2]
[401937853,1768413040129,-492.62086011,0.00014247,2]
[401937856,1768413040140,-10628.8488985,0.00014265,2]
[401937859,1768413040151,-1500.0,0.00014368,2]
[401937861,1768413040161,-1500.0,0.00014368,2]
[401937863,1768413040171,-100000.0,0.00014444,2]
[401937864,1768413040181,-5000.0,0.0001451,2]
[401937865,1768413040191,-594.03075988,0.00014795,2]
[401937866,1768413040202,-500.0,0.00014795,2]
[401937867,1768413040212,-1059.4878042,0.00014795,2]
[401937868,1768413040222,-1500.0,0.00014795,2]
[401937869,1768413040233,-500.0,0.00014795,2]
[401937870,1768413040243,-399.52671749,0.00014872,2]
[401937871,1768413040253,-595.01188659,0.000149,2]
[401937872,1768413040265,-898.77184945,0.000149,2]
[401937873,1768413040277,-2000.0,0.00014916,2]
[401937874,1768413040288,-192.29139729,0.00014916,2]
[401937875,1768413040298,-173.417,0.00014999,2]
[401937876,1768413040308,-1019.00256747,0.00015,2]
[401937877,1768413040318,-35775.62597585,0.00015,2]
[401937878,1768413040328,-1372.43724231,0.00015,3]
[401937879,1768413040338,-151.00724332,0.00015,2]
[401937880,1768413040347,-16286.19559247,0.00015,7]
[401937881,1768413040357,-3261.34607106,0.00015042,2]
[401937882,1768413040367,-1000.0,0.00015058,2]
[401937883,1768413040378,-46205.9352476,0.00015063,2]
[401937884,1768413040389,-800.0,0.00015068,2]
[401937885,1768413040402,-1500.0,0.00015342,2]
[401937887,1768413040412,-373.8417713,0.00015391,2]
[401937889,1768413040423,-500.0,0.00015464,2]
[401937891,1768413040433,-215.88592206,0.00016,2]
[401937893,1768413040443,-10628.8488985,0.00016298,2]
[401937895,1768413040453,-500.0,0.00016438,2]
[401937897,1768413040463,-595.30780858,0.00016438,2]
[401937899,1768413040473,-500.0,0.00016438,2]
[401937901,1768413040483,-500.0,0.00016438,2]
[401937903,1768413040493,-500.0,0.00016438,2]
[401937905,1768413040503,-214.34015021,0.00016438,2]
[401937906,1768413040513,-200.0,0.00016473,2]
[401937908,1768413040523,-155.0,0.00016499,2]
[401937911,1768413040535,-1000.0,0.00016564,2]
[401937913,1768413040546,-244.0,0.00016564,2]
[401937915,1768413040557,-714.695894,0.00016676,2]
[401937917,1768413040569,-452.40525363,0.00016872,2]
[401937919,1768413040579,-373.8417713,0.0001697,2]
[401937921,1768413040588,-95477.61285994,0.00017,2]
[401937922,1768413040598,-46205.9352476,0.00017052,2]
[401937924,1768413040609,-898.77184943,0.00017186,2]
[401937926,1768413040620,-351.0,0.00017383,2]
[401937928,1768413040630,-409.0,0.00017583,2]
[401937930,1768413040640,-2137.48177052,0.000176,2]
[401937932,1768413040651,-160.0,0.00017711,2]
[401937934,1768413040661,-1041.66666667,0.00017711,2]
[401937936,1768413040671,-504.0,0.0001773,2]
[401937938,1768413040683,-400.30202268,0.00017842,2]
[401937940,1768413040694,-155.0,0.00017999,2]
[401937942,1768413040704,-150512.98381193,0.00018,2]
[401937944,1768413040714,-39769.91253842,0.00018,5]
[401937946,1768413040724,-1000.0,0.00018221,2]
[401937948,1768413040735,-492.0,0.00018221,2]
[401937950,1768413040745,-10628.8488985,0.00018331,2]
[401937952,1768413040755,-505.28378977,0.00018872,2]
[401937954,1768413040765,-303.10001603,0.000189,2]
[401937956,1768413040776,-2603.49,0.00019,2]
[401937958,1768413040786,-17969.48957745,0.00019,2]
[401937960,1768413040795,-303.10001603,0.00019089,2]
[401937962,1768413040805,-158.21097661,0.00019178,2]
[401937964,1768413040815,-203.28,0.000192,2]
[401937965,1768413040825,-151.0,0.000192,2]
[401937967,1768413040835,-7276.92,0.000192,2]
[401937969,1768413040846,-1012.61,0.000192,2]
[401937971,1768413040856,-183.46,0.000192,2]
[401937973,1768413040867,-500.99801519,0.00019205,5]
[401937975,1768413040878,-151.0,0.00019232,2]
[401937977,1768413040889,-303.10001603,0.00019278,2]
[401937979,1768413040900,-303.10001603,0.00019467,2]
[401937981,1768413040911,-898.77184943,0.00019471,2]
[401937983,1768413040925,-303.10001603,0.00019656,2]
[401937985,1768413040936,-454.65002405,0.00019845,4]
[401937987,1768413040948,-668.88471487,0.0002,2]
[401937989,1768413040959,-14703.49659754,0.0002,2]
[401937991,1768413040969,-371.66132516,0.0002,2]
[401937993,1768413040980,-200181.45649297,0.0002,2]
[401937995,1768413040991,-163524.2208646,0.0002,7]
[401937997,1768413041001,-6000.89259863,0.0002,2]
[401937999,1768413041011,-804.32909815,0.0002,2]
[401938001,1768413041022,-71424.23051806,0.0002,2]
[401938119,1768413042275,-2235.9121819,0.0002,2]
[401938266,1768413043721,-428.52274918,0.0002,2]
[401938293,1768413043986,-3313.02440543,0.0002,2]
[401938297,1768413043996,-809.68655087,0.0002,2]
[401938473,1768413046373,-955.53616212,0.0002,2]
[401938475,1768413046384,-16799.99999995,0.0002,2]
[401938479,1768413046427,-2009.86651923,0.0002,2]
[401938480,1768413046439,-2424.91076783,0.0002,2]
[401938481,1768413046449,-7146.3555459,0.0002,7]
[401938506,1768413328917,1362.0,0.0001938,120]
[401938507,1768413330346,1362.0,0.00020349,120]
[401938508,1768413331880,1362.0,0.00021366,120]
[401938509,1768413333113,1362.0,0.00022435,120]
[401938510,1768413334534,1362.0,0.00023557,120]
[401938511,1768413335862,1362.0,0.00024734,120]
[401938512,1768413337433,1362.0,0.00025971,120]
[401938513,1768413338596,1362.0,0.0002727,120]
[401938514,1768413339789,216.0,0.000204,120]
[401938515,1768413341349,216.0,0.0002142,120]
[401938516,1768413342967,216.0,0.00022491,120]
[401938517,1768413344403,216.0,0.00023616,120]
[401938518,1768413346036,216.0,0.00024796,120]
[401938519,1768413347445,216.0,0.00026036,120]
[401938520,1768413349882,216.0,0.00027338,120]
[401938524,1768413602998,156.17,5e-05,2]
[401938525,1768413609430,273.0,0.00020482,120]
[401938526,1768413610507,273.0,0.00021506,120]
[401938527,1768413611937,273.0,0.00022581,120]
[401938528,1768413613573,273.0,0.00023711,120]
[401938529,1768413614963,273.0,0.00024896,120]
[401938530,1768413616312,273.0,0.00026141,120]
[401938531,1768413632258,164.0,0.00020492,120]
[401938532,1768413633651,164.0,0.00021517,120]
[401938534,1768413634987,164.0,0.00022593,120]
[401938535,1768413636511,164.0,0.00023723,120]
[401938544,1768413909906,182.0,0.00020495,120]
[401938545,1768413911625,182.0,0.0002152,120]
[401938546,1768413913094,182.0,0.00022596,120]
[401938547,1768413914526,182.0,0.00023726,120]
[401938548,1768413915871,182.0,0.00024912,120]
[401938549,1768413917223,182.0,0.00026157,120]
[401938550,1768413920304,160.0,0.00027397,120]
[401938551,1768413925560,319.47,0.00027397,120]
[401938552,1768413940231,160.0,0.00027397,120]
[401938553,1768413956451,160.0,0.00027397,120]
[401938554,1768413956721,900.0,0.00027,120]
[401938555,1768413975114,160.0,0.00027397,120]
[401938556,1768414011961,180.0,0.00027397,120]
[401938557,1768414031020,186.0,0.00027397,120]
[401938592,1768414232596,-156.17,0.000125,2]
[401938594,1768414232605,-597.0,0.000125,2]
[401938596,1768414232615,-266.11116028,0.00012518,2]
[401938597,1768414232624,-435.51884098,0.00012568,2]
[401938598,1768414232633,-300.0,0.00012568,2]
[401938599,1768414232643,-300.0,0.00012568,2]
[401938600,1768414232652,-300.0,0.00012568,2]
[401938601,1768414232660,-300.0,0.00012568,2]
[401938602,1768414232669,-300.0,0.00012568,2]
[401938603,1768414232678,-1200.0,0.00012568,2]
[401938604,1768414232688,-24965.75697102,0.0001257,2]
[401938623,1768414238636,-25034.24302898,0.0001257,2]
[401938624,1768414238645,-151.88,0.00012572,2]
[401938625,1768414238655,-23.69054607,0.00012574,2]
[401938626,1768414238666,-476.30945393,0.00012574,2]
[401938627,1768414238676,-500.0,0.00012574,2]
[401938628,1768414238685,-500.0,0.00012574,2]
[401938630,1768414238695,-500.0,0.00012574,2]
[401938631,1768414238704,-500.0,0.00012574,2]
[401938632,1768414238714,-300.0,0.00012575,2]
[401938633,1768414238723,-300.0,0.00012575,2]
[401938635,1768414238733,-300.0,0.00012575,2]
[401938637,1768414238742,-300.0,0.00012575,2]
[401938639,1768414238751,-300.0,0.00012575,2]
[401938640,1768414238760,-300.0,0.00012575,2]
[401938641,1768414238769,-300.0,0.00012575,2]
[401938642,1768414238778,-300.0,0.00012575,2]
[401938643,1768414238787,-300.0,0.00012575,2]
[401938644,1768414238797,-300.0,0.00012575,2]
[401938645,1768414238805,-300.0,0.00012575,2]
[401938646,1768414238815,-300.0,0.00012575,2]
[401938647,1768414238824,-300.0,0.00012575,2]
[401938648,1768414238834,-300.0,0.00012575,2]
[401938649,1768414238843,-300.0,0.00012575,2]
[401938650,1768414238853,-500.0,0.00012575,2]
[401938651,1768414238862,-17638.73740043,0.000129,2]
[401938652,1768414238872,-500.0,0.00013273,2]
[401938653,1768414238882,-500.40591836,0.00013273,2]
[401938654,1768414238891,-500.0,0.00013273,2]
[401938655,1768414238902,-500.0,0.00013273,2]
[401938656,1768414238912,-500.0,0.00013273,2]
[401938657,1768414238922,-500.0,0.00013273,2]
[401938658,1768414238932,-502.72164401,0.00013273,2]
[401938659,1768414238942,-500.0,0.00013273,2]
[401938660,1768414238951,-500.0,0.00013273,2]
[401938661,1768414238961,-500.0,0.00013273,2]
[401938662,1768414238970,-204.24579591,0.00013273,2]
[401938663,1768414238979,-500.0,0.00013273,2]
[401938664,1768414238989,-500.0,0.00013273,2]
[401938665,1768414238998,-500.0,0.00013273,2]
[401938666,1768414239008,-500.0,0.00013273,2]
[401938667,1768414239018,-600.0,0.00013537,2]
[401938668,1768414239027,-1000.0,0.00013699,2]
[401938669,1768414239037,-500.0,0.00013699,2]
[401938670,1768414239047,-500.0,0.00013699,2]
[401938671,1768414239056,-1000.0,0.00014247,2]
[401938672,1768414239066,-314.01116913,0.00014518,2]
[401938673,1768414239075,-1500.0,0.00014795,2]
[401938674,1768414239084,-720.0,0.00014891,2]
[401938675,1768414239093,-17638.73740036,0.00015234,2]
[401938676,1768414239102,-2000.0,0.00015342,2]
[401938677,1768414239111,-2500.0,0.0001589,2]
[401938678,1768414239120,-100000.0,0.0001599,2]
[401938679,1768414239129,-3000.0,0.00016,2]
[401938680,1768414239138,-3000.0,0.0001601,2]
[401938681,1768414239148,-3000.0,0.0001602,2]
[401938682,1768414239158,-3000.0,0.0001603,2]
[401938683,1768414239167,-3000.0,0.0001604,2]
[401938684,1768414239177,-3000.0,0.0001605,2]
[401938685,1768414239333,-3000.0,0.0001606,2]
[401938686,1768414239395,-3000.0,0.0001607,2]
[401938687,1768414239404,-3000.0,0.0001608,2]
[401938688,1768414239413,-3000.0,0.0001609,2]
[401938689,1768414239423,-3000.0,0.000161,2]
[401938690,1768414239432,-3000.0,0.0001611,2]
[401938691,1768414239441,-3000.0,0.0001612,2]
[401938692,1768414239450,-5572.220656,0.0001613,2]
[401938693,1768414239460,-359.50873978,0.0001628,2]
[401938694,1768414239469,-672074.47871147,0.00016337,2]
[401938731,1768414240868,-971.385,0.00016337,2]
[401938733,1768414240879,-166110.27204226,0.00016337,2]
[401939204,1768414246464,-500.0,0.00012568,2]
[401939206,1768414246474,-500.0,0.00012568,2]
[401939208,1768414246483,-418.69864871,0.00012568,2]
[401939565,1768414250279,182.56168595,0.00027397,120]
[401939927,1768414508962,169.0,0.00026412,120]
[401939928,1768414533000,159.0,0.00026536,120]
[401939929,1768414806227,173.0,0.0002684,120]
[401939930,1768414829896,160.0,0.0002711,120]
[401939931,1768414890395,1975.12718721,9.45e-05,2]
[401939957,1768415431706,-489.66386895,9.72e-05,2]
[401939959,1768415431717,-10.33613105,9.72e-05,2]
[401939961,1768415431726,-267.67386895,9.72e-05,2]
[401939963,1768415431737,-32.32613105,9.72e-05,2]
[401939965,1768415431746,-300.0,9.72e-05,2]
[401939967,1768415431755,-613.14244877,9.72e-05,2]
[401940000,1768415437718,-586.85755123,9.72e-05,2]
[401940001,1768415437728,-556.0,9.72e-05,2]
[401940002,1768415437737,-500.0,9.72e-05,2]
[401940003,1768415437746,-500.0,9.721e-05,2]
[401940004,1768415437755,-500.0,9.721e-05,2]
[401940005,1768415437763,-500.0,9.721e-05,2]
[401940006,1768415437772,-500.0,9.721e-05,2]
[401940008,1768415437781,-500.0,9.721e-05,2]
[401940009,1768415437790,-210.60455995,9.721e-05,2]
[401940010,1768415437799,-500.0,9.721e-05,2]
[401940011,1768415437808,-500.0,9.721e-05,2]
[401940012,1768415437816,-500.0,9.721e-05,2]
[401940013,1768415437825,-500.0,9.721e-05,2]
[401940014,1768415437834,-500.0,9.721e-05,2]
[401940015,1768415437844,-479.63363451,9.722e-05,2]
[401940016,1768415437852,-50000.0,9.722e-05,2]
[401940017,1768415437862,-500.0,9.722e-05,2]
[401940018,1768415437870,-500.0,9.722e-05,2]
[401940019,1768415437879,-500.0,9.722e-05,2]
[401940020,1768415437888,-923.0,9.722e-05,2]
[401940021,1768415437898,-500.0,9.722e-05,2]
[401940022,1768415437907,-500.0,9.722e-05,2]
[401940023,1768415437916,-500.0,9.722e-05,2]
[401940024,1768415437925,-500.0,9.722e-05,2]
[401940025,1768415437935,-500.0,9.722e-05,2]
[401940026,1768415437944,-500.0,9.722e-05,2]
[401940027,1768415437954,-500.0,9.722e-05,2]
[401940028,1768415437963,-500.0,9.857e-05,2]
[401940029,1768415437972,-500.0,9.857e-05,2]
[401940030,1768415437981,-500.0,9.858e-05,2]
[401940031,1768415437991,-500.0,9.858e-05,2]
[401940032,1768415438000,-500.0,9.858e-05,2]
[401940033,1768415438010,-500.0,9.858e-05,2]
[401940034,1768415438019,-500.0,9.858e-05,2]
[401940035,1768415438029,-500.0,9.858e-05,2]
[401940036,1768415438039,-500.0,9.858e-05,2]
[401940037,1768415438049,-500.0,9.858e-05,2]
[401940038,1768415438059,-500.0,9.858e-05,2]
[401940039,1768415438068,-500.0,9.858e-05,2]
[401940040,1768415438078,-283.83301289,9.858e-05,2]
[401940041,1768415438087,-500.0,9.859e-05,2]
[401940042,1768415438096,-500.0,9.859e-05,2]
[401940043,1768415438106,-500.0,9.859e-05,2]
[401940044,1768415438115,-541.14675922,9.859e-05,2]
[401940045,1768415438124,-923.0,9.859e-05,2]
[401940046,1768415438134,-500.0,9.859e-05,2]
[401940047,1768415438143,-500.0,9.859e-05,2]
[401940048,1768415438152,-500.0,9.859e-05,2]
[401940049,1768415438162,-500.0,9.859e-05,2]
[401940050,1768415438172,-500.0,9.859e-05,2]
[401940051,1768415438183,-500.0,9.859e-05,2]
[401940052,1768415438193,-500.0,9.859e-05,2]
[401940053,1768415438203,-406.20667946,9.994e-05,2]
[401940054,1768415438212,-500.0,9.994e-05,2]
[401940055,1768415438223,-250.0,9.994e-05,2]
[401940056,1768415438233,-500.0,9.994e-05,2]
[401940057,1768415438242,-487.45528999,9.994e-05,2]
[401940058,1768415438252,-500.0,9.994e-05,2]
[401940059,1768415438261,-500.0,9.994e-05,2]
[401940060,1768415438271,-500.0,9.994e-05,2]
[401940061,1768415438280,-500.0,9.994e-05,2]
[401940062,1768415438290,-500.0,9.994e-05,2]
[401940063,1768415438300,-500.0,9.994e-05,2]
[401940064,1768415438309,-477.82012243,9.994e-05,2]
[401940065,1768415438319,-500.0,9.994e-05,2]
[401940066,1768415438328,-412.76052008,9.994e-05,2]
[401940067,1768415438338,-500.0,9.994e-05,2]
[401940068,1768415438347,-500.0,9.994e-05,2]
[401940069,1768415438357,-500.0,9.994e-05,2]
[401940070,1768415438366,-500.0,9.994e-05,2]
[401940071,1768415438376,-500.0,9.994e-05,2]
[401940072,1768415438385,-500.0,9.994e-05,2]
[401940073,1768415438394,-500.0,9.994e-05,2]
[401940074,1768415438403,-500.0,9.994e-05,2]
[401940075,1768415438412,-500.0,9.994e-05,2]
[401940076,1768415438422,-500.0,9.994e-05,2]
[401940077,1768415438432,-500.0,9.994e-05,2]
[401940078,1768415438441,-500.0,9.994e-05,2]
[401940079,1768415438450,-500.0,9.994e-05,2]
[401940080,1768415438460,-500.0,9.994e-05,2]
[401940081,1768415438469,-500.0,9.994e-05,2]
[401940082,1768415438478,-500.0,9.994e-05,2]
[401940083,1768415438488,-500.0,9.994e-05,2]
[401940084,1768415438498,-500.0,9.994e-05,2]
[401940085,1768415438508,-500.0,9.994e-05,2]
[401940086,1768415438517,-500.0,9.994e-05,2]